fUST/lending_fUST_20250630
["ID","MTS","AMOUNT","RATE_DAILY","PERIOD"]
[368627875,1751251841775,-252.643622,0.00018764,2]
[368627876,1751251841784,-252.643622,0.00018764,2]
[368627877,1751251841794,-916.383393,0.00018764,2]
[368627878,1751251841803,-916.383393,0.00018764,2]
[368627879,1751251841812,-151.0,0.00018764,2]
[368627880,1751251841822,-818.0,0.00018766,2]
[368627881,1751251841832,-151.0,0.00018766,2]
[368627882,1751251841842,-388.373096,0.00018766,2]
[368627883,1751251841851,-388.373096,0.00018766,2]
[368627884,1751251841860,-163.134116,0.00018766,2]
[368627885,1751251841870,-163.134116,0.00018766,2]
[368627886,1751251841879,-429.1786,0.00018766,2]
[368627887,1751251841888,-429.1786,0.00018766,2]
[368627888,1751251841897,-460.0,0.00018789,2]
[368627889,1751251841906,-460.0,0.00018789,2]
[368627890,1751251841915,-990.02,0.00018789,2]
[368627891,1751251841924,-711.22,0.0001879,2]
[368627892,1751251841934,-1678.49,0.0001879,2]
[368627893,1751251841944,-1523.69,0.0001879,2]
[368627894,1751251841953,-460.0,0.0001879,2]
[368627895,1751251841963,-460.0,0.0001879,2]
[368627896,1751251841972,-1459.68,0.0001879,2]
[368627897,1751251841982,-2275.0,0.0001879,2]
[368627898,1751251841991,-1504.35,0.0001879,2]
[368627899,1751251842001,-460.0,0.0001879,2]
[368627900,1751251842011,-989.61,0.0001879,2]
[368627901,1751251842020,-460.0,0.0001879,2]
[368627902,1751251842029,-460.0,0.0001879,2]
[368627903,1751251842038,-460.0,0.0001879,2]
[368627904,1751251842047,-151.0,0.00018791,2]
[368627905,1751251842056,-195.446298,0.00018791,2]
[368627906,1751251842065,-195.446298,0.00018791,2]
[368627907,1751251842073,-187.216123,0.00018791,2]
[368627908,1751251842082,-151.644303,0.00018791,2]
[368627909,1751251842090,-151.0,0.00018791,2]
[368627910,1751251842099,-151.0,0.00018791,2]
[368627911,1751251842108,-208.982896,0.00018791,2]
[368627912,1751251842117,-208.982896,0.00018791,2]
[368627913,1751251842126,-194.166681,0.00018791,2]
[368627914,1751251842135,-194.166681,0.00018791,2]
[368627915,1751251842143,-151.862448,0.00018792,2]
[368627916,1751251842152,-194.223741,0.00018792,2]
[368627917,1751251842161,-194.223741,0.00018792,2]
[368627918,1751251842170,-242.728896,0.00018792,2]
[368627919,1751251842179,-242.728896,0.00018792,2]
[368627920,1751251842187,-151.0,0.00018792,2]
[368627921,1751251842196,-151.0,0.00018792,2]
[368627922,1751251842206,-151.0,0.00018792,2]
[368627923,1751251842215,-613.404909,0.00018792,2]
[368627924,1751251842224,-613.404909,0.00018792,2]
[368627925,1751251842232,-152.610938,0.00018792,2]
[368627926,1751251842242,-151.0,0.00018792,2]
[368627927,1751251842251,-662.887281,0.00018792,2]
[368627928,1751251842259,-662.887281,0.00018792,2]
[368627929,1751251842268,-151.0,0.00018792,2]
[368627930,1751251842278,-151.0,0.00018792,2]
[368627931,1751251842287,-936.917153,0.00018792,2]
[368627932,1751251842295,-936.917153,0.00018792,2]
[368627933,1751251842304,-202.341692,0.00018792,2]
[368627934,1751251842314,-202.341692,0.00018792,2]
[368627935,1751251842323,-246.602752,0.00018792,2]
[368627936,1751251842332,-246.602752,0.00018792,2]
[368627937,1751251842341,-151.0,0.00018792,2]
[368627938,1751251842350,-381.332901,0.00018792,2]
[368627939,1751251842359,-381.332901,0.00018792,2]
[368627940,1751251842368,-188.299112,0.00018792,2]
[368627941,1751251842377,-468.900207,0.00018792,2]
[368627942,1751251842386,-468.900207,0.00018792,2]
[368627943,1751251842395,-151.0,0.00018793,2]
[368627944,1751251842403,-151.0,0.00018793,2]
[368627945,1751251842412,-151.0,0.00018793,2]
[368627946,1751251842421,-243.46296542,0.00018794,2]
[368627947,1751251842431,-151.0,0.00018801,2]
[368627948,1751251842441,-388.373096,0.00018801,2]
[368627949,1751251842450,-388.373096,0.00018801,2]
[368627950,1751251842458,-460.0,0.00018801,2]
[368627951,1751251842467,-460.0,0.00018801,2]
[368627952,1751251842476,-460.0,0.00018801,2]
[368627953,1751251842486,-460.0,0.00018801,2]
[368627954,1751251842495,-163.134116,0.00018801,2]
[368627955,1751251842503,-163.134116,0.00018801,2]
[368627956,1751251842513,-460.0,0.00018801,2]
[368627957,1751251842523,-460.0,0.00018801,2]
[368627958,1751251842532,-498.01,0.00018801,2]
[368627959,1751251842541,-460.0,0.00018801,2]
[368627960,1751251842550,-603.1,0.00018801,2]
[368627961,1751251842559,-460.0,0.00018801,2]
[368627962,1751251842568,-202.341692,0.00018801,2]
[368627963,1751251842577,-202.341692,0.00018801,2]
[368627964,1751251842587,-2989.24,0.00018801,2]
[368627965,1751251842597,-246.602752,0.00018801,2]
[368627966,1751251842607,-460.0,0.00018801,2]
[368627968,1751251842615,-246.602752,0.00018801,2]
[368627970,1751251842624,-576.26,0.00018801,2]
[368627972,1751251842634,-460.0,0.00018801,2]
[368627973,1751251842643,-844.62,0.00018801,2]
[368627974,1751251842652,-788.76,0.00018801,2]
[368627975,1751251842661,-460.0,0.00018801,2]
[368627976,1751251842670,-460.0,0.00018801,2]
[368627977,1751251842679,-151.0,0.00018801,2]
[368627979,1751251842688,-429.1786,0.00018801,2]
[368627981,1751251842699,-429.1786,0.00018801,2]
[368627983,1751251842708,-460.0,0.00018801,2]
[368627984,1751251842717,-381.332901,0.00018801,2]
[368627986,1751251842727,-473.31,0.00018801,2]
[368627988,1751251842736,-381.332901,0.00018801,2]
[368627990,1751251842746,-937.71,0.00018801,2]
[368627992,1751251842755,-468.900207,0.00018801,2]
[368627994,1751251842765,-468.900207,0.00018801,2]
[368627995,1751251842774,-497.34332031,0.00018802,2]
[368627996,1751251842784,-460.0,0.00018802,2]
[368627997,1751251842794,-460.0,0.00018802,2]
[368627999,1751251842803,-151.0,0.00018802,2]
[368628001,1751251842813,-151.0,0.00018802,2]
[368628003,1751251842821,-208.982896,0.00018802,2]
[368628005,1751251842831,-151.0,0.00018802,2]
[368628006,1751251842840,-208.982896,0.00018802,2]
[368628007,1751251842849,-151.0,0.00018802,2]
[368628008,1751251842858,-613.404909,0.00018802,2]
[368628009,1751251842868,-613.404909,0.00018802,2]
[368628010,1751251842877,-194.166681,0.00018802,2]
[368628011,1751251842887,-194.166681,0.00018802,2]
[368628012,1751251842896,-662.887281,0.00018802,2]
[368628014,1751251842905,-662.887281,0.00018802,2]
[368628015,1751251842915,-151.0,0.00018802,2]
[368628016,1751251842923,-460.0,0.00018802,2]
[368628017,1751251842932,-151.0,0.00018802,2]
[368628018,1751251842941,-460.0,0.00018802,2]
[368628019,1751251842951,-151.0,0.00018802,2]
[368628020,1751251842960,-341.39770208,0.00018802,2]
[368630561,1751251984733,-177.26252989,0.00018153,2]
[368630562,1751251988054,-131.823315,0.00018153,2]
[368630563,1751252163894,235.211492,0.00013699,2]
[368630565,1751252194322,-186.55309062,0.00018141,2]
[368630566,1751252202470,-83.89702365,0.00018141,2]
[368630567,1751252251957,1954.2363233,0.00017244,2]
[368630568,1751252293972,213.5098755,0.00024649,120]
[368630569,1751252403037,-267.05460744,0.0001814,2]
[368630570,1751252407242,-56.94886903,0.0001814,2]
[368630572,1751252568495,2775.1933576,0.00017241,2]
[368630573,1751252608562,-243.05113097,0.00018139,2]
[368630574,1751252610419,-185.1997988,0.00018139,2]
[368630577,1751252819436,-195.54838833,0.00018139,2]
[368630578,1751252823659,-179.17117521,0.00018139,2]
[368630579,1751253029673,-172.35929982,0.00018138,2]
[368630580,1751253031377,-157.20715644,0.00018138,2]
[368630646,1751253032766,-8.40668522,0.00018138,2]
[368630647,1751253032776,-1200.0,0.00018229,2]
[368630648,1751253032785,-4807.53033408,0.0001823,2]
[368630649,1751253032822,-192.46966592,0.0001823,2]
[368630650,1751253032831,-704.38352759,0.0001823,2]
[368630651,1751253032840,-207.4,0.0001823,2]
[368630652,1751253032850,-1667.11701874,0.0001823,2]
[368630653,1751253032859,-500.0,0.0001823,2]
[368630654,1751253032867,-500.0,0.0001823,2]
[368630655,1751253032876,-500.0,0.0001823,2]
[368630656,1751253032885,-151.0,0.0001823,2]
[368630657,1751253032894,-500.0,0.0001823,2]
[368630658,1751253032904,-649.02851373,0.0001823,2]
[368630659,1751253032913,-151.0,0.0001823,2]
[368630660,1751253032923,-500.0,0.0001823,2]
[368630661,1751253032932,-294.86836277,0.0001823,2]
[368630662,1751253032941,-500.0,0.0001823,2]
[368630663,1751253032951,-500.0,0.0001823,2]
[368630664,1751253032961,-500.0,0.0001823,2]
[368630665,1751253032970,-500.0,0.0001823,2]
[368630666,1751253032980,-500.0,0.0001823,2]
[368630667,1751253032989,-500.0,0.0001823,2]
[368630668,1751253032998,-151.89086691,0.0001823,2]
[368630669,1751253033008,-500.0,0.0001823,2]
[368630670,1751253033017,-500.0,0.0001823,2]
[368630671,1751253033026,-500.0,0.0001823,2]
[368630672,1751253033035,-500.0,0.0001823,2]
[368630673,1751253033046,-500.0,0.0001823,2]
[368630674,1751253033055,-500.0,0.0001823,2]
[368630675,1751253033065,-500.0,0.0001823,2]
[368630676,1751253033075,-500.0,0.0001823,2]
[368630677,1751253033085,-195.02307644,0.0001823,2]
[368630678,1751253033094,-500.0,0.0001823,2]
[368630679,1751253033104,-500.0,0.0001823,2]
[368630680,1751253033113,-500.0,0.0001823,2]
[368630681,1751253033122,-500.0,0.0001823,2]
[368630682,1751253033132,-500.0,0.0001823,2]
[368630683,1751253033141,-500.0,0.0001823,2]
[368630684,1751253033151,-500.0,0.0001823,2]
[368630685,1751253033162,-25000.0,0.0001823,2]
[368630686,1751253033172,-151.0,0.0001823,2]
[368630687,1751253033182,-151.0,0.0001823,2]
[368630688,1751253033192,-199.84024126,0.0001823,2]
[368630689,1751253033201,-300.0,0.00018236,2]
[368630690,1751253033211,-300.0,0.00018236,2]
[368630691,1751253033220,-460.0,0.00018237,2]
[368630692,1751253033229,-460.0,0.00018237,2]
[368630693,1751253033239,-1317.79,0.00018237,2]
[368630694,1751253033248,-492.37937891,0.00018237,2]
[368630695,1751253033258,-460.0,0.00018237,2]
[368630696,1751253033267,-460.0,0.00018238,2]
[368630697,1751253033277,-468.17888627,0.00018238,2]
[368630698,1751253033287,-472.53548511,0.00018238,2]
[368630699,1751253033296,-286.60640578,0.00018238,2]
[368630700,1751253033306,-908.59,0.00018238,2]
[368630701,1751253033315,-1897.47,0.00018238,2]
[368630702,1751253033325,-2100.5,0.00018238,2]
[368630703,1751253033334,-494.46711773,0.00018238,2]
[368630704,1751253033344,-460.0,0.00018238,2]
[368630705,1751253033353,-460.0,0.00018238,2]
[368630706,1751253033363,-460.0,0.00018238,2]
[368630707,1751253033376,-460.0,0.00018238,2]
[368630708,1751253033386,-460.0,0.00018238,2]
[368630709,1751253033395,-460.0,0.00018238,2]
[368630710,1751253033405,-460.0,0.00018238,2]
[368630711,1751253033414,-1992.91,0.00018238,2]
[368630712,1751253033424,-1855.7,0.00018238,2]
[368630713,1751253033433,-2731.33,0.00018238,2]
[368630714,1751253033443,-460.0,0.00018238,2]
[368630715,1751253033452,-460.0,0.00018238,2]
[368630716,1751253033462,-485.72220289,0.00018238,2]
[368630717,1751253033472,-1236.31,0.00018238,2]
[368630718,1751253033481,-460.0,0.00018238,2]
[368630719,1751253033491,-460.0,0.00018238,2]
[368630720,1751253033501,-468.30553314,0.00018238,2]
[368630721,1751253033511,-680.87,0.00018238,2]
[368630722,1751253033520,-503.13087843,0.00018238,2]
[368630723,1751253033530,-530.93,0.00018238,2]
[368630724,1751253033540,-460.0,0.00018238,2]
[368630725,1751253033549,-460.0,0.00018238,2]
[368630726,1751253033559,-460.0,0.00018238,2]
[368630727,1751253033569,-20154.84051181,0.00018238,2]
[368630728,1751253033579,-156.34725847,0.00018239,2]
[368630729,1751253033588,-466.75558171,0.00018239,2]
[368630730,1751253033598,-475.18669318,0.00018239,2]
[368630731,1751253033608,-460.0,0.00018239,2]
[368630732,1751253033617,-460.0,0.00018239,2]
[368630733,1751253033626,-466.93969448,0.00018239,2]
[368630734,1751253033637,-464.52038889,0.00018239,2]
[368630735,1751253033649,-481.55404485,0.00018239,2]
[368630736,1751253033659,-460.0,0.00018239,2]
[368630737,1751253033669,-476.29486759,0.00018239,2]
[368630738,1751253033678,-464.36616659,0.00018239,2]
[368630739,1751253033687,-462.46093934,0.00018239,2]
[368630740,1751253033697,-460.0,0.00018239,2]
[368630741,1751253033706,-460.0,0.00018239,2]
[368630742,1751253033716,-468.23902557,0.00018239,2]
[368630743,1751253033726,-465.00286593,0.00018239,2]
[368630744,1751253033737,-466.55761731,0.00018239,2]
[368630746,1751253033747,-460.0,0.00018239,2]
[368630748,1751253033756,-460.0,0.00018239,2]
[368630750,1751253033766,-578.3566407,0.00018239,2]
[368630752,1751253033776,-264.96513044,0.00018239,2]
[368630754,1751253033787,-469.98046351,0.00018239,2]
[368630756,1751253033798,-460.0,0.00018239,2]
[368630758,1751253033808,-280.03742187,0.00018239,2]
[368630760,1751253033818,-460.0,0.00018239,2]
[368630762,1751253033828,-464.20683823,0.00018239,2]
[368630764,1751253033842,-541.31513344,0.00018239,2]
[368630766,1751253033852,-460.82653518,0.00018239,2]
[368630768,1751253033862,-460.0,0.00018239,2]
[368630770,1751253033872,-460.0,0.00018239,2]
[368630772,1751253033883,-460.0,0.00018239,2]
[368630774,1751253033893,-460.0,0.00018239,2]
[368630776,1751253033903,-460.0,0.00018239,2]
[368630778,1751253033912,-192.7146777,0.00018239,2]
[368630780,1751253033922,-471.14852699,0.00018239,2]
[368630782,1751253033932,-483.91036332,0.00018239,2]
[368630784,1751253033941,-460.0,0.00018239,2]
[368630785,1751253033951,-424.35896637,0.00018239,2]
[368630791,1751253034000,-47.68745407,0.00018239,2]
[368630793,1751253034011,-471.99987411,0.00018239,2]
[368630795,1751253034020,-460.0,0.00018239,2]
[368630797,1751253034030,-460.0,0.00018239,2]
[368630799,1751253034040,-460.0,0.00018239,2]
[368630801,1751253034050,-460.0,0.00018239,2]
[368630803,1751253034059,-1348.32,0.00018239,2]
[368630805,1751253034069,-469.73600955,0.00018239,2]
[368630807,1751253034079,-460.0,0.00018239,2]
[368630809,1751253034088,-460.0,0.00018239,2]
[368630811,1751253034098,-460.0,0.00018239,2]
[368630813,1751253034107,-460.0,0.00018239,2]
[368630815,1751253034118,-460.0,0.00018239,2]
[368630817,1751253034127,-460.0,0.00018239,2]
[368630819,1751253034137,-463.43675517,0.00018239,2]
[368630821,1751253034146,-470.40587548,0.00018239,2]
[368630823,1751253034156,-460.0,0.00018239,2]
[368630825,1751253034166,-460.0,0.00018239,2]
[368630826,1751253034176,-460.0,0.00018239,2]
[368630829,1751253034187,-472.98918173,0.00018239,2]
[368630830,1751253034198,-460.0,0.00018239,2]
[368630832,1751253034208,-677.1,0.00018239,2]
[368630834,1751253034218,-460.0,0.00018239,2]
[368630836,1751253034228,-460.0,0.00018239,2]
[368630838,1751253034238,-460.0,0.00018239,2]
[368630840,1751253034248,-383.78299204,0.00018239,2]
[368630843,1751253034258,-468.76827451,0.00018239,2]
[368630844,1751253034269,-463.40299833,0.00018239,2]
[368630847,1751253034281,-460.0,0.00018239,2]
[368630849,1751253034290,-463.43444936,0.00018239,2]
[368630850,1751253034299,-460.0,0.00018239,2]
[368630853,1751253034309,-467.09084152,0.00018239,2]
[368630855,1751253034318,-460.0,0.00018239,2]
[368630857,1751253034328,-465.68550677,0.00018239,2]
[368630859,1751253034337,-562.76,0.00018239,2]
[368630861,1751253034347,-470.77355347,0.00018239,2]
[368630863,1751253034356,-527.57778262,0.00018239,2]
[368630865,1751253034367,-460.0,0.00018239,2]
[368630867,1751253034377,-730.03,0.00018239,2]
[368630869,1751253034387,-460.0,0.00018239,2]
[368630871,1751253034396,-460.0,0.00018239,2]
[368630873,1751253034406,-460.0,0.00018239,2]
[368630875,1751253034420,-460.0,0.00018239,2]
[368630877,1751253034429,-463.99238202,0.00018239,2]
[368630879,1751253034439,-460.0,0.00018239,2]
[368630881,1751253034449,-470.4311053,0.00018239,2]
[368630883,1751253034459,-465.46692777,0.00018239,2]
[368630884,1751253034469,-460.0,0.00018239,2]
[368630885,1751253034478,-426.52783131,0.00018239,2]
[368630886,1751253034488,-460.0,0.00018239,2]
[368630887,1751253034499,-460.0,0.00018239,2]
[368630888,1751253034508,-460.0,0.00018239,2]
[368630889,1751253034518,-465.34492089,0.00018239,2]
[368630890,1751253034527,-460.0,0.00018239,2]
[368630892,1751253034538,-460.0,0.00018239,2]
[368630894,1751253034547,-460.0,0.00018239,2]
[368630895,1751253034557,-504.92359047,0.00018239,2]
[368630896,1751253034567,-460.0,0.00018239,2]
[368630897,1751253034576,-460.0,0.00018239,2]
[368630898,1751253034586,-460.0,0.00018239,2]
[368630899,1751253034596,-617.08,0.00018239,2]
[368630900,1751253034605,-460.0,0.00018239,2]
[368630901,1751253034615,-405.92216327,0.00018239,2]
[368630902,1751253034624,-460.0,0.00018239,2]
[368630903,1751253034634,-433.83415143,0.00018239,2]
[368630904,1751253034643,-460.0,0.00018239,2]
[368630905,1751253034652,-460.0,0.00018239,2]
[368630906,1751253034661,-460.0,0.00018239,2]
[368630907,1751253034670,-460.0,0.00018239,2]
[368630908,1751253034680,-460.0,0.00018239,2]
[368630909,1751253034689,-460.0,0.00018239,2]
[368630910,1751253034698,-471.38408306,0.00018239,2]
[368630911,1751253034708,-463.16416492,0.0001824,2]
[368630912,1751253034717,-460.0,0.0001824,2]
[368630913,1751253034726,-460.0,0.0001824,2]
[368630914,1751253034735,-460.0,0.0001824,2]
[368630915,1751253034745,-460.0,0.0001824,2]
[368630916,1751253034755,-460.0,0.0001824,2]
[368630917,1751253034764,-463.17078575,0.0001824,2]
[368630918,1751253034773,-460.0,0.0001824,2]
[368630919,1751253034782,-348.62178021,0.0001824,2]
[368630920,1751253034792,-460.0,0.0001824,2]
[368630921,1751253034802,-338.34537796,0.0001824,2]
[368630922,1751253034811,-519.45059435,0.0001824,2]
[368630923,1751253034821,-469.59909121,0.0001824,2]
[368630924,1751253034830,-405.77842083,0.0001824,2]
[368630925,1751253034839,-480.57299574,0.0001824,2]
[368630926,1751253034848,-460.0,0.0001824,2]
[368630927,1751253034857,-467.51904669,0.0001824,2]
[368630928,1751253034866,-460.0,0.0001824,2]
[368630929,1751253034876,-464.76332253,0.0001824,2]
[368630930,1751253034886,-460.0,0.0001824,2]
[368630931,1751253034895,-61.63310978,0.0001824,2]
[368630932,1751253034909,-398.36689022,0.0001824,2]
[368630933,1751253034918,-460.0,0.0001824,2]
[368630934,1751253034928,-467.72,0.0001824,2]
[368630935,1751253034937,-460.0,0.0001824,2]
[368630936,1751253034947,-460.0,0.0001824,2]
[368630937,1751253034957,-4152.47,0.0001824,2]
[368630938,1751253034967,-1076.4,0.0001824,2]
[368630939,1751253034976,-616.92,0.0001824,2]
[368630940,1751253034986,-166.04395503,0.0001824,2]
[368630941,1751253034998,-293.95604497,0.0001824,2]
[368630942,1751253035008,-183.83108635,0.0001824,2]
[368630943,1751253035020,-484.21891365,0.0001824,2]
[368630944,1751253035030,-1701.05,0.0001824,2]
[368630945,1751253035040,-470.76303778,0.00018241,2]
[368630946,1751253035053,-465.93639984,0.00018241,2]
[368630947,1751253035064,-460.0,0.00018241,2]
[368630948,1751253035073,-460.0,0.00018241,2]
[368630949,1751253035082,-1003.13463905,0.00018241,2]
[368630950,1751253035092,-460.0,0.00018241,2]
[368630951,1751253035101,-466.10864289,0.00018241,2]
[368630952,1751253035110,-466.90986238,0.00018241,2]
[368630953,1751253035119,-466.83466494,0.00018241,2]
[368630954,1751253035129,-460.0,0.00018241,2]
[368630955,1751253035139,-466.03944636,0.00018241,2]
[368630956,1751253035148,-465.51000923,0.00018241,2]
[368630957,1751253035157,-460.0,0.00018241,2]
[368630958,1751253035167,-460.0,0.00018241,2]
[368630959,1751253035176,-460.0,0.00018241,2]
[368630960,1751253035185,-460.0,0.00018241,2]
[368630961,1751253035194,-465.26432858,0.00018241,2]
[368630962,1751253035204,-460.0,0.00018241,2]
[368630963,1751253035213,-466.72118698,0.00018241,2]
[368630964,1751253035222,-460.0,0.00018241,2]
[368630965,1751253035232,-460.0,0.00018241,2]
[368630966,1751253035241,-460.0,0.00018241,2]
[368630967,1751253035250,-460.0,0.00018241,2]
[368630968,1751253035260,-568.59123336,0.00018241,2]
[368630969,1751253035403,-460.0,0.00018241,2]
[368630970,1751253035416,-456.71056427,0.00018241,2]
[368630971,1751253035426,-460.0,0.00018241,2]
[368630972,1751253035436,-481.95474154,0.00018241,2]
[368630973,1751253035446,-170.9837426,0.00018241,2]
[368630974,1751253035456,-471.64799531,0.00018241,2]
[368630975,1751253035466,-460.0,0.00018241,2]
[368630976,1751253035476,-460.0,0.00018241,2]
[368630977,1751253035485,-460.0,0.00018241,2]
[368630978,1751253035495,-463.97150226,0.00018241,2]
[368630979,1751253035504,-500.0,0.00018241,2]
[368630980,1751253035513,-637.03,0.00018241,2]
[368630981,1751253035522,-607.46,0.00018241,2]
[368630982,1751253035531,-460.0,0.00018241,2]
[368630983,1751253035541,-460.0,0.00018241,2]
[368630984,1751253035550,-460.0,0.00018241,2]
[368630985,1751253035560,-460.0,0.00018241,2]
[368630986,1751253035569,-460.0,0.00018241,2]
[368630987,1751253035578,-809.59,0.00018241,2]
[368630988,1751253035588,-313.44889633,0.00018241,2]
[368630989,1751253035597,-258.510792,0.00018241,2]
[368630990,1751253035607,-151.0,0.00018241,2]
[368630991,1751253035616,-460.0,0.00018241,2]
[368630992,1751253035625,-460.0,0.00018241,2]
[368630993,1751253035635,-151.0,0.00018241,2]
[368630994,1751253035645,-1031.72,0.00018241,2]
[368630995,1751253035654,-151.0,0.00018241,2]
[368630996,1751253035663,-460.0,0.00018241,2]
[368630997,1751253035672,-460.0,0.00018241,2]
[368630998,1751253035681,-460.0,0.00018241,2]
[368630999,1751253035691,-460.0,0.00018241,2]
[368631000,1751253035700,-460.0,0.00018241,2]
[368631001,1751253035710,-460.0,0.00018241,2]
[368631002,1751253035719,-460.0,0.00018241,2]
[368631003,1751253035728,-747.14,0.00018241,2]
[368631004,1751253035737,-269.761555,0.00018241,2]
[368631005,1751253035746,-1251.82,0.00018241,2]
[368631006,1751253035755,-460.0,0.00018241,2]
[368631007,1751253035764,-151.0,0.00018241,2]
[368631008,1751253035773,-151.0,0.00018241,2]
[368631009,1751253035782,-460.0,0.00018241,2]
[368631010,1751253035792,-1642.67,0.00018241,2]
[368631011,1751253035801,-525.79,0.00018241,2]
[368631012,1751253035810,-504.33974533,0.00018241,2]
[368631013,1751253035819,-460.0,0.00018241,2]
[368631014,1751253035829,-151.0,0.00018241,2]
[368631015,1751253035841,-151.0,0.00018241,2]
[368631016,1751253035850,-280.73122,0.00018241,2]
[368631017,1751253035860,-280.73122,0.00018241,2]
[368631018,1751253035869,-934.86,0.00018241,2]
[368631019,1751253035879,-404.60494926,0.00018241,2]
[368631020,1751253035888,-218.456007,0.00018241,2]
[368631021,1751253035898,-1645.98,0.00018241,2]
[368631022,1751253035907,-218.456007,0.00018241,2]
[368631023,1751253035917,-460.0,0.00018241,2]
[368631024,1751253035928,-460.0,0.00018241,2]
[368631025,1751253035938,-504.8519422,0.00018242,2]
[368631026,1751253035947,-413.13,0.00018242,3]
[368631027,1751253035957,-206.56,0.00018242,3]
[368631028,1751253035966,-619.73,0.00018242,3]
[368631029,1751253035975,-151.0,0.00018242,2]
[368631030,1751253035985,-151.0,0.00018242,2]
[368631031,1751253035994,-151.0,0.00018242,2]
[368631032,1751253036004,-5033.76,0.00018242,2]
[368631033,1751253036013,-151.0,0.00018242,2]
[368631034,1751253036023,-151.0,0.00018242,2]
[368631035,1751253036032,-151.0,0.00018242,2]
[368631036,1751253036042,-1330.15,0.00018242,2]
[368631037,1751253036052,-159.072059,0.00018242,2]
[368631038,1751253036061,-460.0,0.00018242,2]
[368631039,1751253036071,-292.96596,0.00018242,2]
[368631040,1751253036080,-1169.88094,0.00018242,2]
[368631041,1751253036090,-501.284768,0.00018242,2]
[368631042,1751253036099,-1169.88094,0.00018242,2]
[368631043,1751253036109,-501.284768,0.00018242,2]
[368631044,1751253036119,-740.631066,0.00018242,2]
[368631045,1751253036128,-740.631066,0.00018242,2]
[368631046,1751253036138,-192.835188,0.00018242,2]
[368631047,1751253036147,-192.835188,0.00018242,2]
[368631048,1751253036156,-826.25,0.00018243,3]
[368631049,1751253036166,-460.0,0.00018252,2]
[368631050,1751253036176,-461.86243021,0.00018252,2]
[368631051,1751253036185,-460.0,0.00018252,2]
[368631052,1751253036195,-461.3501879,0.00018252,2]
[368631053,1751253036205,-460.0,0.00018252,2]
[368631054,1751253036214,-460.0,0.00018252,2]
[368631055,1751253036223,-232.32774954,0.00018252,2]
[368631056,1751253036233,-464.39517457,0.00018252,2]
[368631057,1751253036242,-460.0,0.00018252,2]
[368631058,1751253036251,-463.68919256,0.00018252,2]
[368631059,1751253036261,-192.17522865,0.00018252,2]
[368631060,1751253036271,-460.0,0.00018252,2]
[368631061,1751253036280,-481.46970923,0.00018252,2]
[368631062,1751253036290,-460.0,0.00018252,2]
[368631063,1751253036300,-151.0,0.00018252,2]
[368631064,1751253036311,-151.0,0.00018252,2]
[368631065,1751253036320,-151.0,0.00018252,2]
[368631066,1751253036329,-460.0,0.00018252,2]
[368631067,1751253036338,-151.0,0.00018252,2]
[368631068,1751253036347,-460.0,0.00018252,2]
[368631069,1751253036357,-465.42937707,0.00018252,2]
[368631070,1751253036367,-151.0,0.00018252,2]
[368631071,1751253036376,-567.21897477,0.00018252,2]
[368631072,1751253036385,-151.0,0.00018252,2]